[Event "FIDE World Cup O12-A 2024"]
[Site "Batumi"]
[Date "2024.06.26"]
[Round "4.7"]
[White "Nanayakkara, Sanuk"]
[Black "Kristesiashvili, Andria"]
[Result "1/2-1/2"]
[ECO "A15"]
[WhiteElo "1714"]
[BlackElo "1728"]
[Annotator "NA RC"]
[PlyCount "89"]
[EventDate "2024.06.23"]
[EventType "swiss"]
[EventCountry "GEO"]
[SourceTitle "playchess.com"]
[Source "ChessBase"]
[SourceQuality "1"]
[TimeControl "5400+30"]

1. Nf3 {[%emt 0:00:06]} Nf6 {[%emt 0:00:13]} 2. g3 {[%emt 0:00:05]} b5 {[%emt 0:00:30]} 3. Bg2 {[%emt 0:00:22]} Bb7 {[%emt 0:00:16]} 4. O-O {[%emt 0:01:51]} c5 {[%emt 0:02:22]} 5. b3 {[%emt 0:02:18]} g6 {[%emt 0:05:16]} 6. Bb2 {[%emt 0:01:15]} Bg7 {[%emt 0:00:07]} 7. c4 {[%emt 0:00:33]} bxc4 {[%emt 0:02:40]} 8. bxc4 {[%emt 0:00:26]} O-O {[%emt 0:00:15]} 9. d3 {[%emt 0:03:53]} d6 {[%emt 0:01:05]} 10. Nbd2 {[%emt 0:01:44]} Nbd7 {[%emt 0:00:43]} 11. Qc2 {[%emt 0:02:06]} Qc7 {[%emt 0:02:07]} 12. Rab1 {[%emt 0:03:05]} Rab8 {[%emt 0:02:40]} 13. Bc3 {[%emt 0:08:41]} Bc6 {[%emt 0:02:47]} 14. h3 {[%emt 0:12:25]} h6 {[%emt 0:19:08]} 15. Rfe1 {[%emt 0:22:11]} Rfe8 {[%emt 0:07:39]} 16. e3 {[%emt 0:08:51]} Nb6 {[%emt 0:10:23]} 17. d4 {[%emt 0:06:31]} cxd4 {[%emt 0:01:40]} 18. Bxd4 {[%emt 0:01:42]} Nbd7 {[%emt 0:06:07]} 19. Rxb8 {[%emt 0:04:35]} Rxb8 {[%emt 0:01:06]} 20. Rb1 {[%emt 0:00:08]} Rc8 {[%emt 0:00:55]} 21. Qb2 {[%emt 0:01:50]} e5 {[%emt 0:04:02]} 22. Bc3 {[%emt 0:00:15]} Ne4 {[%emt 0:00:36]} 23. Bb4 {[%emt 0:01:03]} Ndc5 {[%emt 0:08:32]} 24. Qa3 {[%emt 0:03:33]} Bf8 {[%emt 0:21:21]} 25. Rd1 {[%emt 0:01:41]} Qb7 {[%emt 0:00:00]} 26. Bxc5 {[%emt 0:08:16]} Nxc5 {[%emt 0:00:00]} 27. Rb1 {[%emt 0:00:53]} Qa8 {[%emt 0:00:00]} 28. Rc1 {[%emt 0:01:06]} Ne4 {[%emt 0:00:00]} 29. Nb3 {[%emt 0:00:38]} Nxg3 {[%emt 0:00:00]} 30. fxg3 {[%emt 0:00:27]} Bxf3 {[%emt 0:00:00]} 31. Bf1 {[%emt 0:00:10]} Qb7 {[%emt 0:00:00]} 32. Nd2 {[%emt 0:00:26]} Bc6 {[%emt 0:00:00]} 33. Rb1 {[%emt 0:00:46]} Qe7 {[%emt 0:00:00]} 34. Qa6 {[%emt 0:00:23]} Qd7 {[%emt 0:00:00]} 35. e4 {[%emt 0:01:30]} Be7 {[%emt 0:00:00]} 36. Kh2 {[%emt 0:00:45]} Bg5 {[%emt 0:00:00]} 37. Rd1 {[%emt 0:00:19]} Bb7 {[%emt 0:00:43]} 38. Qa3 {[%emt 0:00:46]} Qc6 {[%emt 0:00:47]} 39. Qd3 {[%emt 0:00:58]} f5 {[%emt 0:01:41]} 40. Bg2 {[%emt 0:00:45]} Rd8 {[%emt 0:02:10]} 41. Rg1 {[%emt 0:00:21]} Qd7 {[%emt 0:01:28]} 42. exf5 {[%emt 0:00:37]} Bxg2 {[%emt 0:00:04]} 43. Rxg2 {[%emt 0:00:19]} Bxd2 {[%emt 0:00:24]} 44. Qxd2 {[%emt 0:00:13]} Qxf5 {[%emt 0:00:19]} 45. Qxh6 {[%emt 0:00:15]} 1/2-1/2

[Event "FIDE World Cup O12-A 2024"]
[Site "Batumi"]
[Date "2024.06.26"]
[Round "4.8"]
[White "Kleschevnikov, Arseny"]
[Black "Lee, Daniel Joshua"]
[Result "1-0"]
[ECO "D37"]
[WhiteElo "1895"]
[BlackElo "1717"]
[Annotator "NA RC"]
[PlyCount "57"]
[EventDate "2024.06.23"]
[EventType "swiss"]
[EventCountry "GEO"]
[SourceTitle "playchess.com"]
[Source "ChessBase"]
[SourceQuality "1"]
[TimeControl "5400+30"]

1. d4 {[%emt 0:00:00]} d5 {[%emt 0:00:05]} 2. c4 {[%emt 0:00:05]} e6 {[%emt 0:00:04]} 3. Nc3 {[%emt 0:00:04]} a6 {[%emt 0:00:04]} 4. cxd5 {[%emt 0:05:12]} exd5 {[%emt 0:00:05]} 5. Nf3 {[%emt 0:00:07]} Nf6 {[%emt 0:00:07]} 6. Bg5 {[%emt 0:01:10]} Be6 {[%emt 0:00:10]} 7. e3 {[%emt 0:03:49]} Nbd7 {[%emt 0:00:08]} 8. Bd3 {[%emt 0:01:10]} Bd6 {[%emt 0:00:16]} 9. O-O {[%emt 0:04:44]} O-O {[%emt 0:00:22]} 10. Qc2 {[%emt 0:02:18]} h6 {[%emt 0:01:07]} 11. Bf4 {[%emt 0:00:51]} Bxf4 {[%emt 0:01:50]} 12. exf4 {[%emt 0:00:05]} Nb8 {[%emt 0:06:01]} 13. Ne5 {[%emt 0:09:34]} Qd6 {[%emt 0:03:48]} 14. Na4 {[%emt 0:07:49]} b6 {[%emt 0:10:46]} 15. Rac1 {[%emt 0:19:05]} Rc8 {[%emt 0:03:59]} 16. Rfe1 {[%emt 0:01:06]} Bd7 {[%emt 0:07:07]} 17. a3 $16 {[%emt 0:04:52]} Bb5 {[%emt 0:22:18]} 18. Bxb5 {[%emt 0:13:29]} axb5 {[%emt 0:00:27]} 19. Nc3 {[%emt 0:00:28]} b4 {[%emt 0:09:07]} 20. Qf5 {[%emt 0:05:34]} Na6 {[%emt 0:06:40]} 21. Nb5 {[%emt 0:03:25]} Qd8 {[%emt 0:04:20]} 22. Nc6 {[%emt 0:00:43]} Qd7 {[%emt 0:00:58]} 23. Qxd7 {[%emt 0:00:22]} Nxd7 {[%emt 0:00:07]} 24. Ne7+ {[%emt 0:00:04]} Kf8 {[%emt 0:00:08]} 25. Nxc8 {[%emt 0:00:14]} Rxc8 {[%emt 0:00:11]} 26. axb4 {[%emt 0:00:33]} Nxb4 {[%emt 0:01:37]} 27. Rxc7 {[%emt 0:01:03]} Rxc7 {[%emt 0:00:56]} 28. Nxc7 {[%emt 0:00:05]} Nd3 {[%emt 0:00:19]} 29. Re8# {[%emt 0:00:05]} 1-0

[Event "FIDE World Cup O12-A 2024"]
[Site "Batumi"]
[Date "2024.06.26"]
[Round "4.9"]
[White "Kozhedub, Ivan"]
[Black "Li, Yiheng"]
[Result "1-0"]
[ECO "B26"]
[WhiteElo "1778"]
[BlackElo "1886"]
[Annotator "NA RC"]
[PlyCount "63"]
[EventDate "2024.06.23"]
[EventType "swiss"]
[EventCountry "GEO"]
[SourceTitle "playchess.com"]
[Source "ChessBase"]
[SourceQuality "1"]
[TimeControl "5400+30"]

1. e4 {[%emt 0:00:01]} c5 {[%emt 0:00:03]} 2. Nc3 {[%emt 0:00:05]} d6 {[%emt 0:00:03]} 3. g3 {[%emt 0:00:04]} Nc6 {[%emt 0:00:04]} 4. Bg2 {[%emt 0:00:05]} g6 {[%emt 0:00:09]} 5. d3 {[%emt 0:00:03]} Bg7 {[%emt 0:00:05]} 6. Be3 {[%emt 0:00:16]} Rb8 {[%emt 0:00:41]} 7. a4 {[%emt 0:00:48]} a6 {[%emt 0:00:24]} 8. Nge2 {[%emt 0:01:05] B26: Closed Sicilian: 3 g3, lines with early Be3.} b5 {[%emt 0:00:55]} 9. axb5 {[%emt 0:00:07]} axb5 {[%emt 0:00:04]} 10. Qd2 {[%emt 0:00:58]} b4 {[%emt 0:00:10]} 11. Nd1 {[%emt 0:00:03]} Nd4 {[%emt 0:00:22]} 12. O-O {[%emt 0:01:18]} e6 {[%emt 0:03:03] is the legacy move (12...h5).} 13. f4 {[%emt 0:02:04]} h5 $146 {[%emt 0:01:53]} ({Predecessor:} 13... Ne7 14. Nxd4 cxd4 15. Bf2 O-O 16. b3 e5 17. Ra4 Qc7 18. Be1 Bd7 19. Rxb4 Bb5 {0-1 Bezkorovaina,M (2188)-Paragua,M (2442) New York Spring IM-B 2023 (6.2)}) 14. Nxd4 {[%emt 0:02:02]} cxd4 {[%emt 0:00:20]} 15. Bf2 {[%emt 0:00:04]} Ne7 {[%emt 0:01:08]} 16. b3 {[%emt 0:01:08]} Nc6 {[%emt 0:05:37]} 17. Nb2 {[%emt 0:05:16]} O-O {[%emt 0:00:59]} 18. h3 {[%emt 0:07:18]} e5 {[%emt 0:09:17]} 19. f5 {[%emt 0:01:10]} Kh7 {[%emt 0:01:43]} 20. Qe2 {[%emt 0:10:25]} Bf6 {[%emt 0:02:33]} 21. Be1 {[%emt 0:01:31]} Kg7 {[%emt 0:00:52]} 22. Bd2 {[%emt 0:01:44]} Bd7 {[%emt 0:02:57]} 23. Nc4 {[%emt 0:02:02]} Qe7 {[%emt 0:00:09]} 24. Ra6 {[%emt 0:03:26]} Rfd8 {[%emt 0:01:40]} 25. Nb6 {[%emt 0:01:27]} Rxb6 {[%emt 0:01:06]} 26. Rxb6 {[%emt 0:00:25]} Ra8 {[%emt 0:00:26]} 27. Rb7 {[%emt 0:05:58]} Qd8 {[%emt 0:00:28]} 28. fxg6 {[%emt 0:00:21]} fxg6 {[%emt 0:00:19]} 29. Qf2 {[%emt 0:00:05]} Nb8 {[%emt 0:00:57]} 30. Bxb4 {[%emt 0:01:27]} Ra6 {[%emt 0:00:32]} 31. Rxb8 {[%emt 0:00:09]} Qxb8 {[%emt 0:00:05]} 32. Qxf6+ {[%emt 0:00:04]} 1-0

[Event "FIDE World Cup O12-A 2024"]
[Site "Batumi"]
[Date "2024.06.26"]
[Round "4.10"]
[White "Yerzhanuly Yernur"]
[Black "Berdashkevich, Makar"]
[Result "1-0"]
[ECO "D02"]
[WhiteElo "1810"]
[BlackElo "1650"]
[Annotator "NA RC"]
[PlyCount "213"]
[EventDate "2024.06.23"]
[EventType "swiss"]
[EventCountry "GEO"]
[SourceTitle "playchess.com"]
[Source "ChessBase"]
[SourceQuality "1"]
[TimeControl "5400+30"]

1. d4 {[%emt 0:00:03]} Nf6 {[%emt 0:01:58]} 2. Bf4 {[%emt 0:02:06]} e6 {[%emt 0:00:56]} 3. e3 {[%emt 0:00:23]} c5 {[%emt 0:01:14]} 4. c3 {[%emt 0:00:36]} Qb6 {[%emt 0:04:52]} 5. Qb3 {[%emt 0:02:00]} Nc6 {[%emt 0:03:13]} 6. Nd2 {[%emt 0:00:36]} d5 {[%emt 0:01:31]} 7. Ngf3 {[%emt 0:01:57]} Be7 {[%emt 0:22:29]} 8. Qxb6 {[%emt 0:11:35]} axb6 {[%emt 0:00:11]} 9. Bb5 {[%emt 0:02:02]} Nh5 {[%emt 0:08:38]} (9... O-O $11) 10. Bc7 {[%emt 0:03:52]} Bd8 {[%emt 0:02:02]} 11. Bxd8 {[%emt 0:00:43]} Kxd8 {[%emt 0:00:10]} 12. Bxc6 {[%emt 0:00:16]} bxc6 {[%emt 0:00:11]} 13. Ne5 {[%emt 0:00:08]} Ke8 {[%emt 0:03:51]} 14. Nxc6 {[%emt 0:00:36]} f6 {[%emt 0:02:17]} 15. g4 {[%emt 0:00:37]} Bd7 {[%emt 0:00:34]} 16. gxh5 {[%emt 0:00:30]} Bxc6 {[%emt 0:00:10]} 17. f4 {[%emt 0:02:43]} Ke7 $14 {[%emt 0:05:02]} 18. Rg1 {[%emt 0:03:52]} Rhg8 {[%emt 0:04:20]} 19. h4 {[%emt 0:01:38]} h6 {[%emt 0:01:05]} 20. Nf1 {[%emt 0:01:15]} Be8 {[%emt 0:03:01]} 21. Ng3 {[%emt 0:00:33]} f5 {[%emt 0:01:58]} 22. a3 {[%emt 0:04:56]} Bf7 {[%emt 0:06:49]} 23. Kf2 {[%emt 0:01:17]} Ra7 {[%emt 0:05:09]} 24. Ke2 {[%emt 0:09:28]} Rga8 {[%emt 0:02:56]} 25. Kd2 {[%emt 0:00:40]} Ra4 {[%emt 0:03:41]} 26. Ra2 {[%emt 0:01:38]} Be8 {[%emt 0:01:54]} 27. Rga1 {[%emt 0:03:10]} c4 {[%emt 0:05:37]} 28. Rg1 {[%emt 0:01:24]} Kf6 {[%emt 0:00:24]} 29. Kc2 {[%emt 0:09:20]} R8a7 {[%emt 0:00:59]} 30. Rb1 {[%emt 0:00:30]} Bb5 {[%emt 0:01:57]} 31. Nf1 {[%emt 0:00:42]} R4a6 {[%emt 0:02:59]} 32. Nh2 {[%emt 0:00:46]} Ba4+ {[%emt 0:01:20]} 33. Kd2 {[%emt 0:00:08]} Be8 {[%emt 0:00:06]} 34. Nf3 {[%emt 0:00:16]} Bxh5 {[%emt 0:00:37]} 35. Ne5 {[%emt 0:00:01]} Be8 {[%emt 0:02:05]} 36. Rg1 {[%emt 0:00:56]} Rb7 {[%emt 0:01:09]} 37. Raa1 {[%emt 0:00:09]} Raa7 {[%emt 0:00:39]} 38. Rg2 {[%emt 0:01:14]} Rc7 {[%emt 0:00:24]} 39. Rag1 {[%emt 0:00:12]} Rab7 {[%emt 0:00:47]} 40. Kc2 {[%emt 0:00:22]} Ra7 {[%emt 0:00:10]} 41. Kb1 {[%emt 0:00:20]} Rab7 {[%emt 0:00:17]} 42. Ka2 {[%emt 0:00:09]} Rb8 {[%emt 0:01:03]} 43. b3 {[%emt 0:02:30]} cxb3+ {[%emt 0:00:14]} 44. Kxb3 {[%emt 0:00:08]} Rbc8 {[%emt 0:00:32]} 45. Kb2 {[%emt 0:00:15]} Ra8 {[%emt 0:00:45]} 46. Kb3 {[%emt 0:00:44]} Ba4+ {[%emt 0:00:36]} 47. Kb4 {[%emt 0:01:16]} Be8 {[%emt 0:00:07]} 48. Rg3 {[%emt 0:00:11]} Ra4+ {[%emt 0:00:45]} 49. Kb3 {[%emt 0:00:01]} Ra8 {[%emt 0:00:30]} 50. c4 {[%emt 0:00:35]} dxc4+ {[%emt 0:00:37]} 51. Nxc4 {[%emt 0:00:01]} Rd8 {[%emt 0:00:31]} 52. R3g2 {[%emt 0:01:21]} Ra7 {[%emt 0:00:35]} 53. Ne5 {[%emt 0:00:52]} Rc7 {[%emt 0:00:28]} 54. Nc4 {[%emt 0:01:41]} Ra7 {[%emt 0:00:16]} 55. Kb2 {[%emt 0:32:46]} Rc7 {[%emt 0:00:45]} 56. Rc1 {[%emt 0:00:00]} Rb7 {[%emt 0:00:31]} 57. Ne5 {[%emt 0:00:00]} Ra8 {[%emt 0:00:28]} 58. Rgc2 {[%emt 0:00:00]} Rba7 {[%emt 0:00:32]} 59. Rc3 {[%emt 0:00:00]} Ba4 {[%emt 0:00:30]} 60. Rc7 {[%emt 0:00:00]} Be8 {[%emt 0:00:29]} 61. Rxa7 {[%emt 0:00:00]} Rxa7 {[%emt 0:00:08]} 62. Nc4 {[%emt 0:00:00]} Ke7 {[%emt 0:00:30]} 63. Rc3 {[%emt 0:00:00]} b5 {[%emt 0:00:34]} 64. Ne5 {[%emt 0:00:00]} Rb7 {[%emt 0:00:28]} 65. Kb3 {[%emt 0:00:00]} Kf6 {[%emt 0:00:34]} 66. Kb4 {[%emt 0:00:00]} g5 {[%emt 0:00:35]} 67. hxg5+ {[%emt 0:00:00]} hxg5 {[%emt 0:00:05]} 68. fxg5+ {[%emt 0:00:00]} Kxg5 {[%emt 0:00:04]} 69. Rc8 {[%emt 0:00:00]} Bh5 {[%emt 0:00:33]} 70. Rg8+ {[%emt 0:00:00]} Kh6 {[%emt 0:01:11]} 71. Nd3 {[%emt 0:00:00]} Bf7 {[%emt 0:00:31]} 72. Rc8 {[%emt 0:00:00]} Kg5 {[%emt 0:01:21]} 73. Rc6 {[%emt 0:00:00]} Rb8 {[%emt 0:00:00]} 74. Nc5 {[%emt 0:00:00]} Ra8 {[%emt 0:00:26]} 75. Rb6 {[%emt 0:00:00]} Kg4 {[%emt 0:00:30]} 76. Nd3 {[%emt 0:00:00]} Ra4+ {[%emt 0:00:25]} 77. Kb3 {[%emt 0:11:00]} Bg8 {[%emt 0:00:36]} 78. Rb8 {[%emt 0:00:00]} e5+ {[%emt 0:00:31]} 79. Rxg8+ {[%emt 0:00:00]} Kf3 {[%emt 0:00:04]} 80. dxe5 {[%emt 0:00:00]} Kxe3 {[%emt 0:00:17]} 81. Nc5 {[%emt 0:00:00]} Ra7 {[%emt 0:00:10]} 82. e6 {[%emt 0:00:00]} Re7 {[%emt 0:00:18]} 83. Kb4 {[%emt 0:00:00]} f4 {[%emt 0:00:07]} 84. Kxb5 {[%emt 0:00:00]} f3 {[%emt 0:00:04]} 85. Kc6 {[%emt 0:00:00]} f2 {[%emt 0:00:18]} 86. Rf8 {[%emt 0:00:00]} Re8 {[%emt 0:00:28]} 87. Rf6 {[%emt 0:00:00]} Rc8+ {[%emt 0:00:18]} 88. Kd6 {[%emt 0:00:00]} Rb8 {[%emt 0:00:15]} 89. Nd7 {[%emt 0:00:00]} Ra8 {[%emt 0:00:05]} 90. Nb6 {[%emt 0:00:00]} Rb8 {[%emt 0:00:37]} 91. Kc7 {[%emt 0:00:00]} Re8 {[%emt 0:00:06]} 92. Kd7 {[%emt 0:00:00]} Rb8 {[%emt 0:00:05]} 93. e7 {[%emt 0:00:00]} Rb7+ {[%emt 0:01:03]} 94. Kd8 {[%emt 0:00:00]} Rxe7 {[%emt 0:00:56]} 95. Kxe7 {[%emt 0:00:00]} Ke2 {[%emt 0:00:04]} 96. a4 {[%emt 0:00:00]} f1=Q {[%emt 0:00:06]} 97. Rxf1 {[%emt 0:00:00]} Kxf1 {[%emt 0:00:03]} 98. a5 {[%emt 0:00:00]} Ke2 {[%emt 0:00:08]} 99. a6 {[%emt 0:00:00]} Kd3 {[%emt 0:00:04]} 100. a7 {[%emt 0:00:00]} Kd4 {[%emt 0:00:04]} 101. a8=Q {[%emt 0:00:00]} Ke5 {[%emt 0:00:02]} 102. Qa4 {[%emt 0:00:00]} Kf5 {[%emt 0:00:06]} 103. Nd5 {[%emt 0:00:00]} Ke5 {[%emt 0:00:09]} 104. Qc4 {[%emt 0:00:00]} Kf5 {[%emt 0:00:03]} 105. Qf4+ {[%emt 0:00:00]} Kg6 {[%emt 0:00:04]} 106. Qg4+ {[%emt 0:00:00]} Kh6 {[%emt 0:00:07]} 107. Kf7 {[%emt 0:00:00]} 1-0

[Event "FIDE World Cup O12-A 2024"]
[Site "Batumi"]
[Date "2024.06.26"]
[Round "4.12"]
[White "Tavberidze, Alexandre"]
[Black "Todua, Andria"]
[Result "0-1"]
[ECO "B45"]
[WhiteElo "1529"]
[BlackElo "1599"]
[Annotator "NA RC"]
[PlyCount "122"]
[EventDate "2024.06.23"]
[EventType "swiss"]
[EventCountry "GEO"]
[SourceTitle "playchess.com"]
[Source "ChessBase"]
[SourceQuality "1"]
[TimeControl "5400+30"]

1. e4 {[%emt 0:00:01]} c5 {[%emt 0:07:21]} 2. Nf3 {[%emt 0:00:31]} e6 {[%emt 0:01:56]} 3. d4 {[%emt 0:00:08]} cxd4 {[%emt 0:00:03]} 4. Nxd4 {[%emt 0:00:06]} Nf6 {[%emt 0:00:04]} 5. Nc3 {[%emt 0:00:22]} Nc6 {[%emt 0:00:04]} 6. Be2 {[%emt 0:00:16]} Bb4 {[%emt 0:01:09]} 7. f3 {[%emt 0:04:14]} Qa5 {[%emt 0:04:02]} 8. Qd2 {[%emt 0:09:36]} O-O {[%emt 0:05:21]} 9. Nb3 {[%emt 0:03:43]} Qb6 {[%emt 0:02:00]} 10. Qe3 {[%emt 0:03:43]} d5 {[%emt 0:01:00]} 11. Qxb6 {[%emt 0:01:30]} axb6 {[%emt 0:00:09]} 12. exd5 {[%emt 0:01:08]} Nxd5 {[%emt 0:00:41]} 13. Bd2 {[%emt 0:00:55]} Bxc3 {[%emt 1:13:10]} 14. Bxc3 {[%emt 0:01:13]} Rd8 {[%emt 0:00:00]} 15. Kf2 {[%emt 0:11:49]} Bd7 {[%emt 0:00:00]} 16. a3 {[%emt 0:04:33]} Nxc3 {[%emt 0:00:00]} 17. bxc3 {[%emt 0:00:08]} Ne7 {[%emt 0:00:00]} 18. c4 {[%emt 0:02:38]} Bc6 {[%emt 0:00:00]} 19. Rhd1 {[%emt 0:01:47]} Rxd1 {[%emt 0:00:00]} 20. Rxd1 {[%emt 0:00:06]} g6 {[%emt 0:00:00]} 21. Ra1 {[%emt 0:01:25]} e5 {[%emt 0:00:00]} 22. Bd3 {[%emt 0:03:11]} Kg7 {[%emt 0:00:00]} 23. Nd2 {[%emt 0:03:05]} f5 {[%emt 0:00:00]} 24. g4 {[%emt 0:06:21]} Kf6 {[%emt 0:00:00]} 25. h4 {[%emt 0:01:04]} Nc8 {[%emt 0:00:00]} 26. Kg3 {[%emt 0:08:28]} Nd6 {[%emt 0:00:00]} 27. g5+ {[%emt 0:04:11]} Kf7 {[%emt 0:00:00]} 28. f4 {[%emt 0:09:37]} e4 {[%emt 0:00:00]} 29. Be2 {[%emt 0:00:20]} Ra4 {[%emt 0:00:00]} 30. Kf2 {[%emt 0:00:35]} Bd7 {[%emt 0:00:00]} 31. c3 {[%emt 0:04:16]} Ke7 {[%emt 0:00:00]} 32. Ke3 {[%emt 0:05:11]} Be6 {[%emt 0:00:00]} 33. Rb1 {[%emt 0:01:30]} Rxa3 {[%emt 0:00:00]} 34. Rxb6 {[%emt 0:00:17]} Rxc3+ {[%emt 0:10:30]} 35. Kd4 {[%emt 0:00:15]} Rc2 {[%emt 0:00:00]} 36. Ke3 {[%emt 0:00:17]} Bc8 {[%emt 0:00:00]} 37. Rb3 {[%emt 0:01:32]} Kd7 {[%emt 0:00:00]} 38. Rb4 {[%emt 0:01:59]} Kc7 {[%emt 0:00:00]} 39. Nb3 {[%emt 0:00:29]} b6 {[%emt 0:00:00]} 40. Nd4 {[%emt 0:00:22]} Rc3+ {[%emt 0:00:00]} 41. Kd2 {[%emt 0:00:15]} Rh3 {[%emt 0:00:00]} 42. h5 {[%emt 0:00:52]} Bd7 {[%emt 0:00:00]} 43. hxg6 {[%emt 0:00:12]} hxg6 {[%emt 0:00:00]} 44. Nb5+ {[%emt 0:00:34]} Bxb5 {[%emt 0:00:00]} 45. cxb5 {[%emt 0:00:15]} Rh4 {[%emt 0:00:00]} 46. Ke3 {[%emt 0:00:09]} Rh3+ {[%emt 0:00:00]} 47. Kf2 {[%emt 0:00:36]} Nb7 {[%emt 0:00:00]} 48. Rd4 {[%emt 0:00:53]} Nc5 {[%emt 0:00:00]} 49. Kg2 {[%emt 0:00:46]} Rb3 {[%emt 0:00:00]} 50. Rd2 {[%emt 0:00:19]} Ne6 {[%emt 0:00:00]} 51. Rc2+ {[%emt 0:00:16]} Kb7 {[%emt 0:00:00]} 52. Rc6 {[%emt 0:00:28]} Nxf4+ {[%emt 0:00:00]} 53. Kf1 {[%emt 0:00:19]} Rb1+ {[%emt 0:00:00]} 54. Kf2 {[%emt 0:00:02]} Rb2 {[%emt 0:00:00]} 55. Ke3 {[%emt 0:00:15]} Nxe2 {[%emt 0:00:00]} 56. Rxg6 {[%emt 0:00:06]} Ng3 {[%emt 0:00:00]} 57. Rg7+ {[%emt 0:00:06]} Kc8 {[%emt 0:00:00]} 58. Kf4 {[%emt 0:00:11]} Nh5+ {[%emt 0:00:00]} 59. Kxf5 {[%emt 0:00:15]} Nxg7+ {[%emt 0:00:00]} 60. Kf6 {[%emt 0:00:19]} Rg2 {[%emt 0:00:00]} 61. Kxg7 {[%emt 0:00:14]} Rxg5+ {[%emt 0:00:00]} 0-1